[Event "AUT Bundesliga 2024-25"]
[Site "Austria"]
[Date "2025.04.04"]
[Round "9.28"]
[White "Rosner, Jonas"]
[Black "Stalmach, Richard"]
[Result "1/2-1/2"]
[Annotator "RC"]
[ECO "E05"]
[WhiteElo "2430"]
[BlackElo "2427"]
[PlyCount "97"]
[EventDate "2024.08.28"]
[EventType "team-tourn"]
[EventCountry "AUT"]
[SourceTitle "playchess.com"]
[Source "ChessBase"]
[SourceQuality "1"]
[TimeControl "40/5400+30:1800+30"]

1. d4 {[%emt 0:00:03]} Nf6 {[%emt 0:00:04]} 2. c4 {[%emt 0:00:07]} e6 {[%emt 0:00:03]} 3. g3 {[%emt 0:00:28]} d5 {[%emt 0:00:06]} 4. Nf3 {[%emt 0:00:17]} Be7 {[%emt 0:00:13]} 5. Bg2 {[%emt 0:00:31]} O-O {[%emt 0:00:09]} 6. O-O {[%emt 0:01:28]} dxc4 {[%emt 0:00:45]} 7. Ne5 {[%emt 0:01:21]} Nc6 {[%emt 0:00:23]} 8. Bxc6 {[%emt 0:00:30]} bxc6 {[%emt 0:00:06]} 9. Nxc6 {[%emt 0:00:22]} Qe8 {[%emt 0:00:06]} 10. Nxe7+ {[%emt 0:00:07]} Qxe7 {[%emt 0:00:03]} 11. Qa4 {[%emt 0:00:57]} e5 {[%emt 0:04:23]} 12. dxe5 {[%emt 0:00:54]} Qxe5 {[%emt 0:00:07]} 13. Qxc4 {[%emt 0:00:29]} Be6 {[%emt 0:03:19]} 14. Qd3 {[%emt 1:29:56]} Rad8 {[%emt 0:01:29]} 15. Qe3 {[%emt 0:00:00]} Qh5 {[%emt 0:02:50]} 16. f3 {[%emt 0:00:00]} Rfe8 {[%emt 0:01:26]} 17. Qg5 {[%emt 0:00:00]} Qh3 {[%emt 0:10:21]} 18. Qc5 {[%emt 0:00:00]} Bd5 {[%emt 0:20:05]} 19. Qf2 {[%emt 0:00:00]} Bc4 {[%emt 0:06:45]} 20. Nc3 {[%emt 0:00:00]} Nd5 {[%emt 0:00:18]} 21. Re1 {[%emt 0:00:00]} Nxc3 {[%emt 0:09:20]} 22. bxc3 {[%emt 0:00:00]} Qf5 {[%emt 0:03:43]} 23. Be3 {[%emt 0:00:00]} a5 {[%emt 0:04:28]} 24. Bd4 {[%emt 0:00:00]} Qc2 {[%emt 0:02:09]} 25. e4 {[%emt 0:00:00]} Qxf2+ {[%emt 0:00:05]} 26. Kxf2 {[%emt 0:00:00]} Rb8 {[%emt 0:00:09]} 27. Reb1 {[%emt 0:00:00]} Bd3 {[%emt 0:00:30]} 28. Rxb8 {[%emt 0:00:00]} Rxb8 {[%emt 0:00:05]} 29. Be5 {[%emt 0:00:00]} Rb2+ {[%emt 0:05:34]} 30. Ke3 {[%emt 0:00:00]} Bc4 {[%emt 0:00:06]} 31. Bxc7 {[%emt 0:00:00]} a4 {[%emt 0:03:37]} 32. a3 {[%emt 0:00:00]} Rxh2 {[%emt 0:00:52]} 33. Rd1 {[%emt 0:00:00]} Re2+ {[%emt 0:00:43]} 34. Kd4 {[%emt 0:00:00]} Bb3 {[%emt 0:00:12]} 35. Rc1 {[%emt 0:00:00]} Ra2 {[%emt 0:00:49]} 36. c4 {[%emt 0:00:00]} Rxa3 {[%emt 0:06:20]} 37. c5 {[%emt 0:00:00]} Be6 {[%emt 0:00:50]} 38. f4 {[%emt 0:00:00]} Rb3 {[%emt 0:08:38]} 39. f5 {[%emt 0:00:00]} Rb4+ {[%emt 0:00:37]} 40. Kc3 {[%emt 0:02:07]} Rb3+ {[%emt 0:00:10]} 41. Kd2 {[%emt 0:32:12]} Bc8 {[%emt 0:15:54]} 42. Rc4 {[%emt 0:00:00]} a3 {[%emt 0:00:04]} 43. c6 {[%emt 0:00:00]} Rb2+ {[%emt 0:03:59]} 44. Ke3 {[%emt 0:00:00]} f6 {[%emt 0:07:18]} 45. Ra4 {[%emt 0:00:00]} Rc2 {[%emt 0:00:36]} 46. Ra8 {[%emt 0:00:00]} Rxc6 {[%emt 0:00:19]} 47. Rxc8+ {[%emt 0:00:00]} Kf7 {[%emt 0:00:02]} 48. Ra8 {[%emt 0:00:00]} Rxc7 {[%emt 0:00:06]} 49. Rxa3 {[%emt 0:00:00]} 1/2-1/2

[Event "AUT Bundesliga 2024-25"]
[Site "Austria"]
[Date "2025.04.04"]
[Round "9.29"]
[White "Haba, Petr"]
[Black "Weber, Samuel"]
[Result "1-0"]
[Annotator "RC"]
[ECO "B12"]
[WhiteElo "2413"]
[BlackElo "2302"]
[PlyCount "87"]
[EventDate "2024.08.28"]
[EventType "team-tourn"]
[EventCountry "AUT"]
[SourceTitle "playchess.com"]
[Source "ChessBase"]
[SourceQuality "1"]
[TimeControl "40/5400+30:1800+30"]

1. e4 {[%emt 0:00:11]} c6 {[%emt 0:00:30]} 2. d4 {[%emt 0:00:41]} d5 {[%emt 0:00:08]} 3. e5 {[%emt 0:00:58]} Bf5 {[%emt 0:00:09]} 4. Bd3 {[%emt 0:01:08]} Bxd3 {[%emt 0:02:52]} 5. Qxd3 {[%emt 0:00:05]} e6 {[%emt 0:03:20]} 6. Ne2 {[%emt 0:00:20]} Ne7 {[%emt 0:03:59]} 7. O-O {[%emt 0:00:26]} Nd7 {[%emt 0:02:44]} 8. Nd2 {[%emt 0:00:41]} Qc7 {[%emt 0:03:07]} 9. Nf3 {[%emt 0:06:07]} h6 {[%emt 0:04:36]} 10. Ng3 {[%emt 0:05:41]} c5 {[%emt 0:03:58]} 11. c3 {[%emt 0:00:07]} cxd4 {[%emt 0:01:18]} 12. cxd4 {[%emt 0:00:11]} Rc8 {[%emt 0:07:39]} 13. Bd2 {[%emt 0:00:46]} Qc4 {[%emt 0:00:45]} 14. Qb1 {[%emt 0:00:44]} Qa6 {[%emt 0:05:19]} 15. a4 {[%emt 0:11:54]} Nc6 {[%emt 0:07:13]} 16. Rc1 {[%emt 0:21:00]} Qb6 {[%emt 0:02:13]} 17. Qd3 {[%emt 0:00:15]} Be7 {[%emt 0:07:33]} 18. Nh5 {[%emt 0:01:34]} g6 {[%emt 0:04:00]} 19. Nf4 {[%emt 0:01:49]} Kd8 {[%emt 0:04:56]} 20. Bc3 {[%emt 0:20:37]} Na5 {[%emt 0:07:10]} 21. Bxa5 {[%emt 0:04:10]} Qxa5 {[%emt 0:00:25]} 22. b3 {[%emt 0:00:05]} Nb8 {[%emt 0:03:06]} 23. Qe3 {[%emt 0:01:36]} Kd7 {[%emt 0:02:20]} 24. Nd3 {[%emt 0:00:23]} Rxc1+ {[%emt 0:01:58]} 25. Rxc1 {[%emt 0:00:05]} b6 {[%emt 0:00:30]} 26. Qf4 {[%emt 0:03:47]} Qa6 {[%emt 0:03:47]} 27. Rc3 {[%emt 0:01:56]} g5 {[%emt 0:05:34]} 28. Qxf7 {[%emt 0:01:44]} Rc8 {[%emt 0:00:23]} 29. Rxc8 {[%emt 0:04:31]} Qxc8 {[%emt 0:00:02]} 30. h4 {[%emt 0:00:31]} g4 {[%emt 0:01:47]} 31. Nh2 {[%emt 0:00:10]} g3 {[%emt 0:01:15]} 32. Ng4 {[%emt 0:00:11]} gxf2+ {[%emt 0:02:52]} 33. Kf1 {[%emt 0:02:31]} Nc6 {[%emt 0:01:38]} 34. Nf4 {[%emt 0:00:45]} Kc7 {[%emt 0:01:50]} 35. Nxe6+ {[%emt 0:02:24]} Kb8 {[%emt 0:00:08]} 36. Nf6 {[%emt 0:03:45]} Nxd4 {[%emt 0:03:04]} 37. Nxd4 {[%emt 0:00:03]} Qc1+ {[%emt 0:00:05]} 38. Kxf2 {[%emt 0:00:04]} Qf4+ {[%emt 0:00:08]} 39. Ke2 {[%emt 0:02:25]} Qxe5+ {[%emt 0:00:12]} 40. Kd3 {[%emt 0:00:21]} Qg3+ {[%emt 0:02:08]} 41. Nf3 {[%emt 0:31:22]} Bxf6 {[%emt 0:06:56]} 42. Qxf6 {[%emt 0:00:00]} Qxg2 {[%emt 0:00:05]} 43. Qd8+ {[%emt 0:00:00]} Kb7 {[%emt 0:00:06]} 44. Qxd5+ {[%emt 0:00:00]} 1-0

[Event "AUT Bundesliga 2024-25"]
[Site "Austria"]
[Date "2025.04.04"]
[Round "9.30"]
[White "Leeb, Simon"]
[Black "Bures, Jaroslav"]
[Result "1/2-1/2"]
[Annotator "RC"]
[ECO "A80"]
[WhiteElo "2220"]
[BlackElo "2396"]
[PlyCount "26"]
[EventDate "2024.08.28"]
[EventType "team-tourn"]
[EventCountry "AUT"]
[SourceTitle "playchess.com"]
[Source "ChessBase"]
[SourceQuality "1"]
[TimeControl "40/5400+30:1800+30"]

1. d4 {[%emt 0:00:08]} f5 {[%emt 0:00:03]} 2. Nc3 {[%emt 0:01:37]} Nf6 {[%emt 0:00:14]} 3. Bg5 {[%emt 0:00:06]} d5 {[%emt 0:00:04]} 4. Bxf6 {[%emt 0:03:39]} exf6 {[%emt 0:00:02]} 5. e3 {[%emt 0:00:07]} Be6 {[%emt 0:00:25]} 6. Bd3 {[%emt 0:06:17]} Nc6 {[%emt 0:01:09]} 7. Qf3 {[%emt 0:05:26]} Qd7 {[%emt 0:01:57]} 8. a3 {[%emt 0:03:02]} g5 {[%emt 0:05:28]} 9. Qh5+ {[%emt 0:11:49]} Bf7 {[%emt 0:01:20]} 10. Qf3 {[%emt 0:00:05]} Be6 {[%emt 0:01:35]} 11. Qh5+ {[%emt 0:01:44]} Bf7 {[%emt 1:23:43]} 12. Qf3 {[%emt 0:00:05]} Be6 {[%emt 0:00:00]} 13. Qh5+ {[%emt 0:05:28]} Bf7 {[%emt 0:00:00]} 1/2-1/2

[Event "AUT Bundesliga 2024-25"]
[Site "Austria"]
[Date "2025.04.04"]
[Round "9.31"]
[White "Ragger, Markus"]
[Black "Horvath, Dominik"]
[Result "1/2-1/2"]
[Annotator "TA"]
[ECO "C54"]
[WhiteElo "2585"]
[BlackElo "2543"]
[PlyCount "49"]
[EventDate "2024.08.28"]
[EventType "team-tourn"]
[EventCountry "AUT"]
[SourceTitle "playchess.com"]
[Source "ChessBase"]
[SourceQuality "1"]
[TimeControl "40/5400+30:1800+30"]

{[%evp 17,49,0,0,0,0,-14,17,-12,0,0,0,0,0,0,0,0,0,0,0,0,0,0,0,0,0,0,0,0,0,0,0,0,0,0]} 1. e4 {[%emt 0:00:02]} e5 {[%emt 0:00:15]} 2. Nf3 {[%emt 0:00:03]} Nc6 {[%emt 0:00:09]} 3. Bc4 {[%emt 0:01:16]} Bc5 {[%emt 0:01:25][%cal Bf8c5,Bc5b6,Bb6a5][%mdl 32]} 4. c3 {[%emt 0:01:29]} Nf6 {[%emt 0:00:15]} 5. d4 {[%emt 0:00:57]} exd4 {[%emt 0:00:40]} 6. e5 {[%emt 0:00:22]} d5 {[%emt 0:00:06]} 7. Bb5 {[%emt 0:00:33]} Ne4 {[%emt 0:00:07]} 8. cxd4 {[%emt 0:00:05]} Bb6 {[%emt 0:01:55]} 9. Nc3 {[%emt 0:00:17]} O-O {[%emt 0:02:04] The position is equal.} 10. Be3 {[%emt 0:01:03] C54: Giuoco Piano: 4 c3 Nf6, main lines with 5 d4 and 5 d3.} Bg4 {[%emt 0:03:04]} 11. h3 {[%emt 0:01:28]} Bh5 {[%emt 0:00:06]} (11... Bxf3 {simplifies} 12. gxf3 Nxc3 13. bxc3 Ne7) 12. Qc2 {[%emt 0:00:06]} Ba5 {[%emt 0:01:58]} 13. O-O {[%emt 0:02:41]} Bxf3 {[%emt 0:01:43]} 14. gxf3 {[%emt 0:01:10]} Nxd4 {[%emt 0:00:22]} 15. Bxd4 {[%emt 0:00:22]} Qg5+ {[%emt 0:00:43]} 16. Kh1 {[%emt 0:00:49]} Bxc3 $1 {[%emt 0:00:11]} 17. bxc3 {[%emt 0:11:50]} (17. Bxc3 $5 Qf5 $8 18. Kh2 (18. fxe4 Qxh3+ 19. Kg1 Qg4+ 20. Kh2 Qf4+ 21. Kh3 Qf3+ 22. Kh2 Qf4+ 23. Kg1 Qg4+ 24. Kh2 Qh4+ 25. Kg1 Qg4+ $11) 18... Qf4+ 19. Kg2 Qg5+ 20. Kh1 $11) 17... Qf5 {[%emt 0:02:10][%csl LRf3,LRh3]} 18. Kg2 {[%emt 0:02:23]} Qg5+ {[%emt 0:00:50]} 19. Kh1 {[%emt 0:00:11]} Qf5 {[%emt 0:00:06][%csl LRf3,LRh3]} 20. fxe4 $5 {[%emt 0:03:10][%mdl 4] An interesting side line.} Qxh3+ {[%emt 0:00:38]} 21. Kg1 {[%emt 0:00:04]} Qg4+ {[%emt 0:00:05]} 22. Kh1 {[%emt 0:00:07]} Qh3+ {[%emt 0:00:05]} 23. Kg1 {[%emt 0:00:04]} Qg4+ {[%emt 0:00:05]} 24. Kh1 $146 {[%emt 0:00:05]} (24. Kh2 Qh4+ 25. Kg2 Qg4+ {½-½ Wang,H (2702)-Huang,R (2513) Chengdu Chess King rapid 2024 (2.2)}) 24... Qh3+ {[%emt 0:00:05]} 25. Kg1 {[%emt 0:00:04] A rather calm draw.   Weighted Error Value: White=0.04 (flawless) /Black=0.03 (flawless)   Inaccurate:     	White=1     	Black=1      OK:         	White=5     	Black=7      Best:        	---       	Black=3      Strong:       	---       	Black=1} 1/2-1/2

[Event "AUT Bundesliga 2024-25"]
[Site "Austria"]
[Date "2025.04.04"]
[Round "9.32"]
[White "Kozak, Adam"]
[Black "Costa, Leonardo"]
[Result "1-0"]
[Annotator "TA"]
[ECO "C77"]
[WhiteElo "2598"]
[BlackElo "2510"]
[PlyCount "165"]
[EventDate "2024.08.28"]
[EventType "team-tourn"]
[EventCountry "AUT"]
[SourceTitle "playchess.com"]
[Source "ChessBase"]
[SourceQuality "1"]
[TimeControl "40/5400+30:1800+30"]

{[%evp 16,165,0,-2,21,4,39,34,33,0,0,0,0,0,0,0,0,0,7,7,12,2,4,12,9,2,2,4,6,0,14,4,7,8,5,0,8,12,2,7,45,47,55,60,55,55,54,54,62,54,54,59,54,47,73,79,92,93,141,147,160,154,185,183,192,197,178,171,253,227,357,391,421,352,468,410,386,401,592,587,4161,3318,1841,1616,29969,29970,29970,29970,29968,29969,29971,29972,29972,29973,29973,29974,29974,29975,29975,29976,29976,29977,29978,29978,29978,29975,29974,29976,29967,0,29978,29979,29979,29980,29980,29978,29975,29976,29984,29985,29985,29986,29986,29987,29987,29986,29988,29985,29985,29986,29986,29984,29984,29982,29982,29980,29981,0,29982,29983,29983,29984,29984,29983,29983,29984,29981,29982,29982,29983,29983,29984]} 1. e4 {[%emt 0:00:01]} e5 {[%emt 0:00:05]} 2. Nf3 {[%emt 0:00:05]} Nc6 {[%emt 0:00:02]} 3. Bb5 {[%emt 0:00:09]} a6 {[%emt 0:00:04]} 4. Ba4 {[%emt 0:00:08]} Nf6 {[%emt 0:00:04]} 5. d3 {[%emt 0:00:05]} d6 {[%emt 0:00:15]} 6. c4 {[%emt 0:00:06]} g6 {[%emt 0:02:11]} 7. Nc3 {[%emt 0:00:08]} Bg7 {[%emt 0:00:02]} 8. h3 {[%emt 0:00:06]} O-O {[%emt 0:01:24]} 9. O-O {[%emt 0:00:07]} h6 {[%emt 0:03:55] C77: Ruy Lopez: 3...a6 4 Ba4 Nf6, unusual lines.} 10. Be3 {[%emt 0:07:13]} Nd7 {[%emt 0:01:43]} 11. d4 {[%emt 0:04:31]} f5 $146 {[%emt 0:00:04] White is slightly better.} (11... Na5 12. Bxd7 Bxd7 13. b3 Nc6 14. Qd2 Kh7 15. Rad1 f5 16. exf5 Rxf5 17. d5 Ne7 {1-0 Pichot,A (2633)-Kantor,G (2527) Julius Baer Play In rapid 2023 (1.27)}) 12. dxe5 {[%emt 0:05:47]} f4 {[%emt 0:07:11]} 13. e6 {[%emt 0:35:20]} Nde5 {[%emt 0:11:23]} 14. Nxe5 $1 {[%emt 0:08:44]} Bxe5 {[%emt 0:02:36]} (14... Nxe5 $6 15. Nd5 Bxe6 (15... fxe3 $2 16. e7 $18) 16. Nxf4 $16 (16. Bxf4 Nxc4 17. Bb3 b5 $14)) 15. Bxc6 {[%emt 0:03:55]} bxc6 {[%emt 0:06:56]} (15... fxe3 16. f4 (16. Bd5 exf2+ 17. Rxf2 Kg7 $11) 16... bxc6 17. fxe5) 16. Bd4 {[%emt 0:00:36]} Qf6 {[%emt 0:05:13]} 17. Bxe5 {[%emt 0:02:07]} Qxe5 {[%emt 0:00:03] [#]} 18. e7 $1 {[%emt 0:02:08]} Qxe7 {[%emt 0:00:17][%cal Of4f3] Hoping for ...f3!.} 19. f3 {[%emt 0:00:25]} Qe5 {[%emt 0:02:54]} 20. Qd3 {[%emt 0:02:02]} a5 {[%emt 0:02:06]} 21. b3 {[%emt 0:01:35]} Kg7 {[%emt 0:00:47]} 22. Rfd1 {[%emt 0:01:39]} g5 {[%emt 0:02:08]} 23. Qd4 {[%emt 0:04:00]} (23. Rac1 {looks sharper.} Be6 24. Kf2 Kf6 25. Qd4) 23... Qxd4+ {[%emt 0:13:32]} 24. Rxd4 {[%emt 0:00:03][%cal Oc4c5]} c5 {[%emt 0:00:03]} 25. Rd2 {[%emt 0:00:30][%cal Oe4e5]} Re8 {[%emt 0:00:50]} 26. Kf2 {[%emt 0:01:58]} Bd7 {[%emt 0:00:41] [#]} 27. h4 $1 {[%emt 0:05:57]} Bc6 {[%emt 0:04:19]} (27... a4 28. bxa4) 28. Rg1 {[%emt 0:03:20]} Rab8 {[%emt 0:07:40]} 29. g3 {[%emt 0:00:43]} fxg3+ {[%emt 0:00:06]} 30. Rxg3 {[%emt 0:00:05]} Kf6 {[%emt 0:03:46]} 31. Ke3 {[%emt 0:03:04]} Rg8 {[%emt 0:02:22]} 32. hxg5+ {[%emt 0:00:44]} hxg5 {[%emt 0:03:06]} 33. Rdg2 {[%emt 0:01:21]} Rbf8 {[%emt 0:00:20]} 34. Kd3 {[%emt 0:02:12][%cal Of3f4]} Ke7 {[%emt 0:00:48]} 35. Ke2 {[%emt 0:01:07] White leaves nothing to chance now.} (35. Rxg5 Rxf3+ 36. Kc2 Rf2+ 37. Rxf2 Rxg5 $11) 35... Kf6 {[%emt 0:00:17]} 36. f4 {[%emt 0:01:18]} Ke7 {[%emt 0:03:57]} (36... Re8 $142) 37. fxg5 $16 {[%emt 0:00:17]} Kf7 {[%emt 0:00:01]} 38. Rh2 {[%emt 0:02:06]} Rh8 {[%emt 0:08:46] [#] Against Rh7+} 39. Rh6 {[%emt 0:00:42]} Kg7 {[%emt 0:00:03]} 40. Rgh3 {[%emt 0:02:04]} Rxh6 {[%emt 0:00:04]} 41. Rxh6 $18 {[%emt 0:12:23][%mdl 4096] Endgame KRB-KRN. White is a pawn up.} a4 {[%emt 0:17:35]} (41... Re8) 42. bxa4 {[%emt 0:01:07]} Rf4 {[%emt 0:00:12]} (42... Bb7 43. Nb5 Bxe4) 43. Re6 {[%emt 0:11:04]} Kf7 {[%emt 0:06:09]} 44. Nd5 {[%emt 0:00:16]} Rh4 {[%emt 0:04:53]} 45. Rf6+ {[%emt 0:02:18]} Kg7 {[%emt 0:00:07]} 46. Nxc7 {[%emt 0:02:08] and Ne6+ would now be decisive} Bxe4 {[%emt 0:03:35]} (46... Rxe4+ {was called for.} 47. Kd3 Rg4 48. Ne6+ (48. Rxd6 Bxa4 49. Kc3 Kf7 $18) 48... Kg8) 47. Ne8+ {[%emt 0:01:26]} ({Less strong is} 47. Rxd6 Bc2 48. a5 Rxc4 $16) 47... Kh7 {[%emt 0:01:23]} 48. Rh6+ {[%emt 0:01:36]} Rxh6 {[%emt 0:00:04]} 49. gxh6 {[%emt 0:00:03] White threatens Nf6+ and mate.} Kxh6 {[%emt 0:00:04]} 50. Nxd6 {[%emt 0:00:05] KB-KN. White is two pawns up.} Bg2 {[%emt 0:00:34]} 51. Kf2 {[%emt 0:03:39]} Bc6 {[%emt 0:00:05]} 52. a5 {[%emt 0:00:13]} Kg6 {[%emt 0:00:08]} 53. Ke3 {[%emt 0:00:24]} Bg2 {[%emt 0:03:05]} 54. Ne4 {[%emt 0:01:18]} Kf5 {[%emt 0:01:58]} 55. Nxc5 {[%emt 0:00:07]} Ke5 {[%emt 0:00:07]} 56. Nd3+ {[%emt 0:00:15]} Kd6 {[%emt 0:00:05]} 57. Kd4 {[%emt 0:00:04]} Kc6 {[%emt 0:01:38]} 58. Nb4+ {[%emt 0:00:07]} Kd6 {[%emt 0:00:18]} 59. Nd5 {[%emt 0:01:55]} Kc6 {[%emt 0:00:11]} 60. Ne3 {[%emt 0:00:52]} Bf3 {[%emt 0:00:08]} 61. Nc2 {[%emt 0:00:12]} Bg2 {[%emt 0:00:18]} 62. Nb4+ {[%emt 0:00:13]} Kd6 $1 {[%emt 0:00:06]} 63. a6 {[%emt 0:01:08] Wards off Bb7} Bf3 {[%emt 0:00:50]} 64. c5+ {[%emt 0:00:28][%cal Bc4c5,Bc5c6,Bc6c7][%mdl 32]} Kc7 {[%emt 0:00:04]} 65. Nd5+ {[%emt 0:00:07]} Kb8 {[%emt 0:02:23]} 66. c6 {[%emt 0:00:49]} Bg4 {[%emt 0:00:54]} 67. Kc5 {[%emt 0:00:28]} Ka7 {[%emt 0:00:10]} 68. Nb4 {[%emt 0:00:14]} Bh3 {[%emt 0:01:18]} 69. c7 {[%emt 0:00:10]} Bg4 {[%emt 0:01:00]} 70. a4 {[%emt 0:01:00][%cal Ba2a4,Ba4a5][%mdl 32]} Bh3 {[%emt 0:00:57]} 71. a5 {[%emt 0:00:06]} Bg4 {[%emt 0:02:52]} 72. Kd4 {[%emt 0:00:18]} Bh3 {[%emt 0:00:28]} 73. Kc3 {[%emt 0:00:41]} Bg4 {[%emt 0:00:25]} 74. Kb2 {[%emt 0:00:19]} Bh3 {[%emt 0:00:04]} 75. Ka1 {[%emt 0:00:05]} Bg4 {[%emt 0:00:06]} 76. Kb2 {[%emt 0:00:05]} Bh3 $1 {[%emt 0:00:04]} 77. Kc1 {[%emt 0:00:04] White mates.} Bg4 {[%emt 0:00:04]} 78. Kd2 {[%emt 0:00:03]} Bh3 {[%emt 0:00:05]} 79. Ke1 {[%emt 0:00:10]} Bg4 {[%emt 0:00:06]} 80. Kf2 {[%emt 0:00:05]} Bh3 {[%emt 0:00:11]} 81. Kg3 {[%emt 0:00:05]} Bf5 {[%emt 0:00:05]} 82. Kh4 {[%emt 0:00:05]} Bc8 {[%emt 0:00:17]} 83. Kg5 {[%emt 0:00:09] Weighted Error Value: White=0.03 (flawless) /Black=0.45  Mistake:       	---       	Black=4      Inaccurate:     	White=1     	Black=5      OK:         	White=23    	Black=18     Best:        	White=6     	Black=2      Strong:       	White=1     	---} 1-0